bitfinex/quotes_BTCUSD_20240905
["timestamp","ask_amount","ask_price","bid_price","bid_amount"]
[1725542779382,0.91656133,56788.0,56787.0,0.21613]
[1725542780047,1.14072501,56788.0,56787.0,0.21613]
[1725542781206,1.60129282,56788.0,56787.0,0.21613]
[1725542789966,1.60129282,56788.0,56787.0,0.00163]
[1725542790185,1.95347982,56788.0,56787.0,0.00163]
[1725542790405,2.22854682,56788.0,56787.0,0.00163]
[1725542790598,2.38719173,56788.0,56787.0,0.00163]
[1725542791474,2.38723481,56788.0,56787.0,0.00163]
[1725542794913,2.11216781,56788.0,56787.0,0.23003]
[1725542796470,2.11216628,56788.0,56787.0,0.23003]
[1725542796687,2.11216628,56788.0,56787.0,0.00163]
[1725542798254,1.95347982,56788.0,56787.0,0.00163]
[1725542798482,2.11216628,56788.0,56787.0,0.00163]
[1725542799232,1.95347982,56788.0,56787.0,0.00163]
[1725542800831,1.60129282,56788.0,56787.0,0.00163]
[1725542801125,1.60129282,56788.0,56787.0,0.09943]
[1725542801363,0.65631162,56788.0,56787.0,0.21793]
[1725542802043,0.78853975,56788.0,56787.0,0.21793]
[1725542802258,1.00849862,56788.0,56787.0,0.21793]
[1725542802477,1.1407284,56788.0,56787.0,0.21793]
[1725542803134,1.0291486,56788.0,56787.0,0.21793]
[1725542803373,1.24910582,56788.0,56787.0,0.21793]
[1725542803605,1.62629994,56788.0,56787.0,0.21793]
[1725542804769,1.24910582,56788.0,56787.0,0.21793]
[1725542804992,1.00849862,56788.0,56787.0,0.21793]
[1725542805666,1.11427545,56788.0,56787.0,0.21793]
[1725542806142,1.10527545,56788.0,56787.0,0.21793]
[1725542806570,1.11227545,56788.0,56787.0,0.21793]
[1725542806812,1.11227545,56788.0,56787.0,0.394026]
[1725542806813,0.06069684,56788.0,56787.0,0.394026]
[1725542807044,0.007815,56788.0,56787.0,0.21793]
[1725542807980,0.007815,56788.0,56787.0,0.394026]
[1725542808210,0.007815,56788.0,56787.0,0.21793]
[1725542808665,0.003815,56788.0,56787.0,0.21793]
[1725542808891,0.3078464,56791.0,56789.0,0.0922]
[1725542809124,0.3078464,56791.0,56787.0,0.00163]
[1725542809125,0.4839304,56791.0,56790.0,0.2148]
[1725542810257,0.528237,56793.0,56792.0,0.1231]
[1725542810480,0.528234,56793.0,56792.0,0.2138]
[1725542812335,0.528234,56793.0,56792.0,0.2108]
[1725542813075,1.240546,56793.0,56792.0,0.2108]
[1725542813547,1.29338552,56793.0,56792.0,0.2108]
[1725542814244,0.94122952,56793.0,56792.0,0.2108]
[1725542815911,1.29338552,56793.0,56792.0,0.2108]
[1725542816156,1.240546,56793.0,56792.0,0.2108]
[1725542817749,1.241361,56793.0,56792.0,0.2108]
[1725542818905,1.39119442,56793.0,56792.0,0.2108]
[1725542820785,1.39119813,56793.0,56792.0,0.2108]
[1725542821973,1.03904213,56793.0,56792.0,0.2108]
[1725542822197,1.01263048,56793.0,56792.0,0.2108]
[1725542822440,0.94202248,56793.0,56792.0,0.2108]
[1725542824544,1.18262968,56793.0,56792.0,0.2108]
[1725542824782,1.18262087,56793.0,56792.0,0.2108]
[1725542825020,1.53477687,56793.0,56792.0,0.2108]
[1725542825495,1.232654,56788.0,56787.0,0.00163]
[1725542825736,1.4732612,56788.0,56787.0,0.00163]
[1725542825976,1.4732612,56788.0,56787.0,0.09993]
[1725542827219,1.232654,56788.0,56787.0,0.10093]
[1725542828189,1.8254482,56788.0,56787.0,0.00463]
[1725542828446,2.26184133,56788.0,56787.0,0.00463]
[1725542828696,2.25984133,56788.0,56787.0,0.00463]
[1725542829187,2.25984133,56788.0,56787.0,0.00263]
[1725542829439,2.25984133,56788.0,56787.0,0.00163]
[1725542829691,2.61665433,56788.0,56787.0,0.00163]
[1725542829935,1.92147133,56788.0,56787.0,0.00263]
[1725542830156,1.92147133,56788.0,56787.0,0.00163]
[1725542830157,1.91747133,56788.0,56787.0,0.00163]
[1725542830404,1.94291997,56788.0,56787.0,0.00163]
[1725542830636,1.94691997,56788.0,56787.0,0.00263]
[1725542830887,1.95091997,56788.0,56787.0,0.00263]
[1725542831130,1.35812577,56788.0,56787.0,0.00263]
[1725542831365,1.00193877,56788.0,56787.0,0.12133]
[1725542831598,0.56672864,56788.0,56787.0,0.12233]
[1725542831824,0.56672864,56788.0,56787.0,0.21483]
[1725542832059,0.55772864,56788.0,56787.0,0.21383]
[1725542832520,0.56272864,56788.0,56787.0,0.21383]
[1725542832756,0.21454164,56788.0,56787.0,0.21383]
[1725542833018,0.013,56788.0,56787.0,0.21383]
[1725542833256,0.009,56788.0,56787.0,0.21383]
[1725542833493,0.011,56788.0,56787.0,0.21383]
[1725542833721,0.009,56788.0,56787.0,0.21383]
[1725542834179,0.20251799,56789.0,56787.0,0.21383]
[1725542834414,0.20251799,56789.0,56788.0,0.2139]
[1725542834645,0.20251799,56789.0,56788.0,0.2129]
[1725542836270,0.352168,56791.0,56789.0,0.12]
[1725542836271,0.176085,56791.0,56789.0,0.12]
[1725542836731,0.000815,56793.0,56789.0,0.12]
[1725542836974,0.176081,56792.0,56789.0,0.12]
[1725542837220,0.176085,56791.0,56789.0,0.12]
[1725542837665,0.176085,56791.0,56790.0,0.1022]
[1725542837802,0.176085,56791.0,56790.0,0.2247]
[1725542838668,0.177085,56791.0,56790.0,0.2247]
[1725542839328,0.352157,56793.0,56790.0,0.2247]
[1725542839572,0.176084,56791.0,56790.0,0.2247]
[1725542839772,0.176079,56793.0,56790.0,0.2247]
[1725542840179,0.176079,56793.0,56791.0,0.1154]
[1725542840584,0.02583676,56794.0,56792.0,0.1022]
[1725542840788,0.176067,56797.0,56793.0,0.276478]
[1725542840994,0.176067,56797.0,56794.0,0.0994]
[1725542841277,0.176067,56797.0,56794.0,0.0954]
[1725542841680,0.02726342,56798.0,56794.0,0.271474]
[1725542841942,0.20332642,56798.0,56794.0,0.267474]
[1725542842570,0.20332642,56798.0,56794.0,0.0914]
[1725542842571,0.176066,56797.0,56794.0,0.0914]
[1725542843173,0.176066,56797.0,56794.0,0.267474]
[1725542843368,0.02726342,56798.0,56795.0,0.352142]
[1725542843610,0.02726342,56798.0,56797.0,1.001427]
[1725542843611,0.000815,56798.0,56797.0,1.001427]
[1725542843817,0.000815,56798.0,56797.0,1.353558]
[1725542844039,0.000815,56798.0,56797.0,1.001427]
[1725542844692,0.000815,56798.0,56797.0,1.346558]
[1725542844921,0.000815,56798.0,56797.0,1.453658]
[1725542845130,0.000815,56798.0,56797.0,1.445658]
[1725542845549,0.000815,56798.0,56797.0,1.466658]
[1725542845820,0.000815,56803.0,56802.0,1.47985]
[1725542846023,0.000815,56803.0,56802.0,2.0715572]
[1725542847375,0.000815,56803.0,56802.0,2.0855572]
[1725542847585,0.000815,56803.0,56802.0,2.0845572]
[1725542847797,0.000815,56803.0,56802.0,2.0855572]
[1725542848222,0.000815,56817.0,56816.0,0.528019]
[1725542848430,0.000815,56817.0,56816.0,0.740519]
[1725542849493,0.000815,56817.0,56816.0,1.101532]
[1725542849924,0.000815,56817.0,56816.0,1.092532]
[1725542850365,0.000815,56817.0,56816.0,0.388506]
[1725542850569,0.000815,56817.0,56816.0,0.748519]
[1725542851000,0.000815,56817.0,56816.0,0.2205]
[1725542851219,0.528825,56817.0,56816.0,0.2125]
[1725542851423,0.529825,56817.0,56816.0,0.2225]
[1725542851657,0.881832,56817.0,56816.0,0.019]
[1725542851865,0.882832,56817.0,56816.0,0.019]
[1725542852077,1.4754462,56817.0,56816.0,0.019]
[1725542852769,0.882832,56817.0,56816.0,0.019]
[1725542853269,0.530825,56817.0,56816.0,0.019]
[1725542853482,0.529825,56817.0,56816.0,0.019]
[1725542853917,0.177818,56817.0,56816.0,0.019]
[1725542854160,0.001815,56817.0,56816.0,0.195006]
[1725542854375,0.001815,56817.0,56816.0,0.411006]
[1725542854602,0.001815,56817.0,56816.0,0.235]
[1725542854874,0.177818,56817.0,56816.0,0.019]
[1725542855105,0.529825,56817.0,56816.0,0.019]
[1725542855327,0.530825,56817.0,56816.0,0.019]
[1725542855988,0.882832,56817.0,56816.0,0.019]
[1725542857130,1.234839,56817.0,56816.0,0.019]
[1725542858249,1.234839,56817.0,56816.0,0.01]
[1725542858732,1.234839,56817.0,56816.0,0.012]
[1725542859400,1.233839,56817.0,56816.0,0.002]
[1725542859846,0.881832,56817.0,56816.0,0.002]
[1725542860068,0.176818,56817.0,56816.0,0.2193]
[1725542860317,0.529825,56817.0,56816.0,0.2193]
[1725542860531,0.881832,56817.0,56816.0,0.005]
[1725542860759,0.529825,56817.0,56816.0,0.005]
[1725542861869,0.176818,56817.0,56816.0,0.005]
[1725542862301,0.177818,56817.0,56816.0,0.005]
[1725542862582,0.176003,56817.0,56816.0,0.005]
[1725542863454,0.30620511,56818.0,56816.0,0.005]
[1725542863455,0.48220611,56818.0,56816.0,0.005]
[1725542864128,0.176003,56817.0,56816.0,0.005]
[1725542864354,0.176003,56817.0,56816.0,0.002]
[1725542865496,0.176003,56817.0,56816.0,0.003]
[1725542865934,0.176003,56817.0,56816.0,0.002]
[1725542866390,0.176003,56817.0,56816.0,0.004]
[1725542866607,0.176003,56817.0,56816.0,0.002]
[1725542867050,0.176003,56817.0,56816.0,0.005]
[1725542867504,0.176818,56817.0,56816.0,0.005]
[1725542868222,0.880832,56817.0,56816.0,0.005]
[1725542868446,0.176818,56817.0,56816.0,0.005]
[1725542868666,0.000815,56817.0,56816.0,0.005]
[1725542869107,0.528825,56817.0,56816.0,0.005]
[1725542869544,0.176818,56817.0,56816.0,0.005]
[1725542870500,0.528825,56817.0,56816.0,0.005]
[1725542873177,0.880832,56817.0,56816.0,0.005]
[1725542873391,1.232839,56817.0,56816.0,0.005]
[1725542873613,0.880832,56817.0,56816.0,0.1222]
[1725542874980,0.528825,56817.0,56816.0,0.223]
[1725542875208,0.176818,56817.0,56816.0,0.223]
[1725542875900,0.528825,56817.0,56816.0,0.223]
[1725542876341,0.000815,56817.0,56816.0,0.223]
[1725542878031,0.176818,56817.0,56816.0,0.223]
[1725542878636,0.000815,56817.0,56816.0,0.223]
[1725542878887,0.176818,56817.0,56816.0,0.223]
[1725542879139,0.16280874,56818.0,56816.0,0.22463]
[1725542879596,0.33880974,56818.0,56816.0,0.22463]
[1725542880052,0.33880974,56818.0,56816.0,0.22163]
[1725542880284,0.16280874,56818.0,56816.0,0.21963]
[1725542880577,0.13681156,56818.0,56816.0,0.22163]
[1725542880811,1.232024,56817.0,56816.0,0.00363]
[1725542881039,1.232024,56817.0,56816.0,0.00463]
[1725542881277,0.880017,56817.0,56816.0,0.00363]
[1725542881725,1.232024,56817.0,56816.0,0.00363]
[1725542882183,1.232024,56817.0,56816.0,0.00463]
[1725542883362,1.232024,56817.0,56816.0,0.00263]
[1725542883591,1.428524,56817.0,56816.0,0.00363]
[1725542884065,2.24609033,56817.0,56816.0,0.00663]
[1725542884315,2.15229033,56817.0,56816.0,0.00663]
[1725542884555,2.15229033,56817.0,56816.0,0.01363]
[1725542884556,1.32617133,56817.0,56816.0,0.01363]
[1725542884807,1.32617133,56817.0,56816.0,0.00863]
[1725542885072,1.32517133,56817.0,56816.0,0.00363]
[1725542886014,1.232024,56817.0,56816.0,0.00363]
[1725542886241,1.40432233,56817.0,56816.0,0.00363]
[1725542886457,1.32522517,56817.0,56816.0,0.00363]
[1725542887161,2.48712893,56817.0,56816.0,0.00763]
[1725542887393,2.72873613,56817.0,56816.0,0.004]
[1725542887615,2.17052513,56817.0,56816.0,0.004]
[1725542887844,3.64004813,56817.0,56816.0,0.004]
[1725542888065,3.59655413,56817.0,56816.0,0.004]
[1725542888322,3.59555413,56817.0,56816.0,0.004]
[1725542888558,3.54816837,56817.0,56816.0,0.004]
[1725542888785,2.50386237,56817.0,56816.0,0.004]
[1725542889971,2.29168237,56817.0,56816.0,0.004]
[1725542890205,2.38118137,56817.0,56816.0,0.004]
[1725542890435,2.22908137,56817.0,56816.0,0.004]
[1725542890664,2.49308137,56817.0,56816.0,0.004]
[1725542890920,2.22908137,56817.0,56816.0,0.004]
[1725542891163,2.11213937,56817.0,56816.0,0.00563]
[1725542891397,1.99333937,56817.0,56816.0,0.00563]
[1725542892325,1.56583237,56817.0,56816.0,0.00563]
[1725542892559,1.4726312,56817.0,56816.0,0.00563]
[1725542892988,1.8246382,56817.0,56816.0,0.00563]
[1725542893233,2.50586418,56817.0,56816.0,0.00563]
[1725542893477,2.12052118,56817.0,56816.0,0.00563]
[1725542893715,1.98851655,56817.0,56816.0,0.00563]
[1725542893928,1.68875755,56817.0,56816.0,0.00563]
[1725542894172,1.4726312,56817.0,56816.0,0.00563]
[1725542894407,1.57820961,56817.0,56816.0,0.00563]
[1725542894646,1.4726312,56817.0,56816.0,0.00563]
[1725542894923,1.57820827,56817.0,56816.0,0.00563]
[1725542895383,1.4726312,56817.0,56816.0,0.00563]
[1725542895605,1.56580439,56817.0,56816.0,0.00563]
[1725542895829,1.4726312,56817.0,56816.0,0.00563]
[1725542897305,1.57822041,56817.0,56816.0,0.00563]
[1725542897748,1.57822605,56817.0,56816.0,0.00563]
[1725542898706,0.880017,56817.0,56816.0,0.00563]
[1725542898940,0.880017,56817.0,56816.0,0.22633]
[1725542898941,0.9592068,56817.0,56816.0,0.22633]
[1725542899178,1.1206242,56817.0,56816.0,0.22633]
[1725542899440,0.13681156,56818.0,56817.0,0.396703]
[1725542900150,0.13681156,56818.0,56817.0,1.100717]
[1725542900606,0.13681156,56818.0,56817.0,0.74971]
[1725542900845,0.13681156,56818.0,56817.0,0.399703]
[1725542901583,0.13681156,56818.0,56817.0,1.100717]
[1725542902066,0.13781156,56818.0,56817.0,1.114717]
[1725542903006,0.13781156,56818.0,56817.0,0.2347]
[1725542903732,0.13781156,56818.0,56817.0,0.410703]
[1725542903949,0.13781156,56818.0,56817.0,0.2347]
[1725542904889,0.31381156,56818.0,56817.0,0.2347]
[1725542905104,0.66581256,56818.0,56817.0,0.2347]
[1725542905345,0.66281256,56818.0,56817.0,0.2347]
[1725542906274,0.33599586,56818.0,56817.0,0.2347]
[1725542906516,0.15999586,56818.0,56817.0,0.2347]
[1725542906960,0.33599586,56818.0,56817.0,0.2347]
[1725542907425,0.13481156,56818.0,56817.0,0.410703]
[1725542907679,0.13481156,56818.0,56817.0,0.76271]
[1725542909334,0.13481156,56818.0,56817.0,1.114717]
[1725542909551,0.13481156,56818.0,56817.0,0.76271]
[1725542910273,0.13481156,56818.0,56817.0,1.0033172]
[1725542910500,0.13481156,56818.0,56817.0,1.3553242]
[1725542911200,0.13481156,56818.0,56817.0,0.2347]
[1725542911444,0.13481156,56818.0,56817.0,0.410703]
[1725542911665,0.13481156,56818.0,56817.0,0.76271]
[1725542912346,0.13481156,56818.0,56817.0,1.114717]
[1725542913110,0.13481156,56818.0,56817.0,1.466724]
[1725542914307,0.13481156,56818.0,56817.0,0.76271]
[1725542914542,0.13481156,56818.0,56817.0,1.114717]
[1725542914966,0.13481156,56818.0,56817.0,0.76271]
[1725542915212,0.13481156,56818.0,56817.0,1.114717]
[1725542915882,0.13481156,56818.0,56817.0,0.76271]
[1725542916106,0.13481156,56818.0,56817.0,1.114717]
[1725542917460,0.13481156,56818.0,56817.0,1.466724]
[1725542922308,0.13481156,56818.0,56817.0,1.829731]
[1725542923239,0.13481156,56818.0,56817.0,1.823731]
[1725542923696,0.13481156,56818.0,56817.0,1.837731]
[1725542923917,0.13481156,56818.0,56817.0,1.829731]
[1725542923918,0.13381156,56818.0,56817.0,1.829731]
[1725542924414,0.13381156,56818.0,56817.0,1.842731]
[1725542924865,0.13381156,56818.0,56817.0,1.828731]
[1725542925087,0.13381156,56818.0,56817.0,1.816361]
[1725542925330,0.13381156,56818.0,56817.0,1.830361]
[1725542925572,0.13381156,56818.0,56817.0,1.482354]
[1725542925813,0.13381156,56818.0,56817.0,1.464354]
[1725542926028,0.13381156,56818.0,56817.0,1.816361]
[1725542926486,0.13381156,56818.0,56817.0,1.830361]
[1725542926887,0.13381156,56818.0,56817.0,1.479354]
[1725542927112,0.13381156,56818.0,56817.0,1.468354]
[1725542927337,0.13381156,56818.0,56817.0,1.834361]
[1725542927537,0.13381156,56818.0,56817.0,1.482354]
[1725542928112,0.13381156,56818.0,56817.0,1.492354]
[1725542928353,0.13381156,56818.0,56817.0,1.493354]
[1725542928586,0.13381156,56818.0,56817.0,1.845361]
[1725542929263,0.13381156,56818.0,56817.0,1.493354]
[1725542930406,0.13381156,56818.0,56817.0,1.845361]
[1725542930807,0.13381156,56818.0,56817.0,1.846361]
[1725542932433,0.13381156,56818.0,56817.0,1.845361]
[1725542932679,0.13381156,56818.0,56817.0,1.492354]
[1725542933397,0.13381156,56818.0,56817.0,1.844361]
[1725542933613,0.13381156,56818.0,56817.0,1.492354]
[1725542933839,0.13381156,56818.0,56817.0,1.844361]
[1725542934063,0.13381156,56818.0,56817.0,1.492354]
[1725542934322,0.13381156,56818.0,56817.0,1.845361]
[1725542939745,0.13381156,56818.0,56817.0,1.846361]
[1725542940213,0.13381156,56818.0,56817.0,1.866361]
[1725542940654,0.13381156,56818.0,56817.0,1.865361]
[1725542941575,0.13381156,56818.0,56817.0,1.512354]
[1725542941822,0.13381156,56818.0,56817.0,1.513354]
[1725542942105,0.13381156,56818.0,56817.0,1.492354]
[1725542942541,0.13381156,56818.0,56817.0,1.502354]
[1725542943654,0.13381156,56818.0,56817.0,1.513354]
[1725542944099,0.13381156,56818.0,56817.0,1.512354]
[1725542945027,0.13381156,56818.0,56817.0,1.502354]
[1725542945244,0.13381156,56818.0,56817.0,1.482354]
[1725542945477,0.13381156,56818.0,56817.0,1.492354]
[1725542948679,0.13381156,56818.0,56817.0,1.493354]
[1725542950093,0.13381156,56818.0,56817.0,1.503354]
[1725542950669,0.13381156,56818.0,56817.0,1.502354]
[1725542950875,0.13381156,56818.0,56817.0,1.482354]
[1725542951316,0.13381156,56818.0,56817.0,1.261654]
[1725542952226,0.13381156,56818.0,56817.0,0.909647]
[1725542952482,0.22201156,56818.0,56817.0,0.02963]
[1725542952696,0.89884333,56818.0,56817.0,0.02963]
[1725542952924,0.54684233,56818.0,56817.0,0.02963]
[1725542953140,0.89884333,56818.0,56817.0,0.00163]
[1725542953357,0.54684233,56818.0,56817.0,0.00163]
[1725542953584,0.54684233,56818.0,56817.0,0.02963]
[1725542954245,0.89884333,56818.0,56817.0,0.02963]
[1725542954481,1.25084433,56818.0,56817.0,0.02963]
[1725542954768,0.89884333,56818.0,56817.0,0.02963]
[1725542954907,1.25084433,56818.0,56817.0,0.02963]
[1725542956299,0.89884333,56818.0,56817.0,0.02963]
[1725542957668,0.54684233,56818.0,56817.0,0.02963]
[1725542957908,0.33604233,56818.0,56817.0,0.02963]
[1725542958142,0.13381156,56818.0,56817.0,0.323033]
[1725542958363,0.13381156,56818.0,56817.0,0.67504]
[1725542958582,0.13381156,56818.0,56817.0,1.027047]
[1725542959499,0.13381156,56818.0,56817.0,1.379054]
[1725542959717,0.13381156,56818.0,56817.0,1.130647]
[1725542960200,0.13381156,56818.0,56817.0,0.55764]
[1725542961172,0.13381156,56818.0,56817.0,0.205633]
[1725542962485,0.13381156,56818.0,56817.0,0.55764]
[1725542963564,0.13381156,56818.0,56817.0,1.132747]
[1725542963805,0.13381156,56818.0,56817.0,0.55764]
[1725542965145,0.13381156,56818.0,56817.0,0.909647]
[1725542968486,0.13381156,56818.0,56817.0,1.7234612]
[1725542970153,0.13381156,56818.0,56817.0,2.0864682]
[1725542970381,0.13381156,56818.0,56817.0,1.7234612]
[1725542972887,0.13381156,56818.0,56817.0,2.0864682]
[1725542973823,0.13381156,56818.0,56817.0,2.0794682]
[1725542974294,0.13381156,56818.0,56817.0,2.1074682]
[1725542974523,0.13381156,56818.0,56817.0,2.4594752]
[1725542974970,0.13381156,56818.0,56817.0,2.1074682]
[1725542975201,0.13381156,56818.0,56817.0,2.15997874]
[1725542975447,0.13381156,56818.0,56817.0,2.14597874]
[1725542976134,0.13381156,56818.0,56817.0,2.48398574]
[1725542976586,0.13381156,56818.0,56817.0,2.14597874]
[1725542976797,0.13381156,56818.0,56817.0,2.0934682]
[1725542977025,0.13381156,56818.0,56817.0,2.1074682]
[1725542982040,0.13381156,56818.0,56817.0,2.1064682]
[1725542982997,0.13381156,56818.0,56817.0,2.1054682]
[1725542983464,0.13381156,56818.0,56817.0,1.7434612]
[1725542983914,0.13381156,56818.0,56817.0,1.7534612]
[1725542984618,0.13142987,56818.0,56817.0,1.7534612]
[1725542985083,0.13142987,56818.0,56817.0,1.7544612]
[1725542986935,0.13142987,56818.0,56817.0,1.7534612]
[1725542987636,0.13142987,56818.0,56817.0,1.7434612]
[1725542987852,0.13142987,56818.0,56817.0,1.7534612]
[1725542988076,0.13142987,56818.0,56817.0,1.7434612]
[1725542988288,0.13142987,56818.0,56817.0,1.7534612]
[1725542989409,0.13142987,56818.0,56817.0,1.7334612]
[1725542989630,0.13142987,56818.0,56817.0,1.7534612]
[1725542991180,0.00081,56843.0,56822.0,0.01]
[1725542991419,0.5924632,56842.0,56823.0,0.5925752]
[1725542991642,0.32655521,56833.0,56823.0,0.5925752]
[1725542992082,0.2406072,56842.0,56822.0,0.01]
[1725542992083,0.14500505,56836.0,56829.0,0.2406072]
[1725542992305,0.175949,56835.0,56832.0,0.175956]
[1725542992525,0.14500505,56836.0,56833.0,0.175954]
[1725542992744,0.32095105,56836.0,56833.0,0.175954]
[1725542992971,0.175947,56835.0,56830.0,0.351922]
[1725542993209,0.175954,56833.0,56822.0,0.01]
[1725542993428,0.175951,56834.0,56830.0,0.175961]
[1725542993892,0.175957,56832.0,56824.0,0.2406072]
[1725542994128,0.14500505,56836.0,56828.0,0.351937]
[1725542994347,0.351896,56835.0,56828.0,0.351937]
[1725542994567,0.175951,56834.0,56830.0,0.175962]
[1725542994780,0.14500505,56836.0,56830.0,0.527884]
[1725542995005,0.175948,56835.0,56831.0,0.17596]
[1725542995218,0.02700505,56836.0,56834.0,0.175949]
[1725542995450,0.02700505,56836.0,56835.0,0.175947]
[1725542996137,0.02700505,56836.0,56835.0,1.1203442]
[1725542996138,0.00081,56836.0,56835.0,1.1203442]
[1725542996380,0.00081,56836.0,56835.0,1.7000392]
[1725542996593,0.00081,56836.0,56835.0,1.6990392]
[1725542996819,0.00081,56836.0,56835.0,1.7090392]
[1725542997044,0.00081,56836.0,56835.0,1.6990392]
[1725542997500,0.00081,56836.0,56835.0,1.329932]
[1725542997940,0.00081,56836.0,56835.0,0.541842]
[1725542998173,0.176754,56836.0,56835.0,0.014]
[1725542998841,0.645843,56836.0,56835.0,0.014]
[1725542999292,0.293954,56836.0,56835.0,0.014]
[1725542999735,0.32013428,56836.0,56835.0,0.014]
[1725543000424,0.32013428,56836.0,56835.0,1.100837]
[1725543000425,0.00081,56836.0,56835.0,1.100837]
[1725543000648,0.00081,56836.0,56835.0,1.452732]
[1725543000900,0.00081,56836.0,56835.0,1.7133392]
[1725543001143,0.00081,56836.0,56835.0,1.7043392]
[1725543001370,0.00081,56836.0,56835.0,1.7033392]
[1725543001624,0.00081,56836.0,56835.0,1.452732]
[1725543001859,0.00081,56836.0,56835.0,1.114837]
[1725543002086,0.00081,56836.0,56835.0,1.3574442]
[1725543002564,0.00081,56836.0,56835.0,0.016]
[1725543002788,0.175934,56840.0,56835.0,0.016]
[1725543003036,0.07905325,56852.0,56835.0,0.016]
[1725543003037,0.7684402,56836.0,56835.0,0.016]
[1725543003283,0.2406072,56836.0,56835.0,0.016]
[1725543003523,0.07905325,56844.0,56835.0,0.016]
[1725543003524,0.05270217,56843.0,56835.0,0.016]
[1725543003775,0.05270217,56844.0,56838.0,0.351875]
[1725543004002,0.02705442,56845.0,56835.0,0.014]
[1725543004003,0.07975659,56845.0,56835.0,0.014]
[1725543004255,0.07975659,56845.0,56838.0,0.175938]
[1725543004256,0.175928,56842.0,56838.0,0.175938]
[1725543004471,0.175928,56842.0,56835.0,0.014]
[1725543004472,0.351859,56841.0,56835.0,0.014]
[1725543004704,0.175941,56837.0,56835.0,0.014]
[1725543004925,0.32036379,56845.0,56835.0,0.015]
[1725543005159,0.32036379,56845.0,56839.0,0.1212]
[1725543005160,0.02705442,56845.0,56839.0,0.1212]
[1725543005391,0.00082,56845.0,56844.0,0.17592]
[1725543005612,0.00082,56845.0,56843.0,0.175922]
[1725543006054,0.00082,56845.0,56844.0,0.17592]
[1725543006501,0.00082,56845.0,56844.0,0.8831181]
[1725543006502,0.00282,56845.0,56844.0,0.8831181]
[1725543006726,0.0025048,56854.0,56853.0,0.527676]
[1725543006955,0.0025048,56854.0,56853.0,1.6068512]
[1725543007691,0.0025048,56854.0,56853.0,1.356244]
[1725543007919,0.0025048,56854.0,56853.0,1.5968512]
[1725543008145,0.0025048,56854.0,56853.0,1.7078512]
[1725543008378,0.0025048,56854.0,56853.0,1.7198512]
[1725543008603,0.0025048,56854.0,56853.0,1.6978512]
[1725543008824,0.0025048,56854.0,56853.0,1.7078512]
[1725543009042,0.0025048,56854.0,56853.0,1.7218512]
[1725543009727,0.0025048,56854.0,56853.0,1.7118512]
[1725543009944,0.0025048,56854.0,56853.0,1.7258512]
[1725543010174,0.0025048,56854.0,56853.0,1.13346]
[1725543010406,0.0025048,56854.0,56853.0,1.3600672]
[1725543010649,0.0025048,56854.0,56853.0,1.7278512]
[1725543010867,0.0025048,56854.0,56853.0,1.7418512]
[1725543011118,0.0025048,56854.0,56853.0,2.1096352]
[1725543011610,0.00081,56860.0,56859.0,1.613861]
[1725543011863,0.00081,56860.0,56859.0,2.25487916]
[1725543012109,0.00081,56860.0,56859.0,2.25587916]
[1725543012644,0.00081,56860.0,56859.0,2.0793682]
[1725543012893,0.00081,56860.0,56859.0,2.0933682]
[1725543013373,0.00081,56860.0,56859.0,2.0803682]
[1725543013597,0.00081,56860.0,56859.0,2.0933682]
[1725543014291,0.00081,56860.0,56859.0,2.0793682]
[1725543014756,0.00081,56860.0,56859.0,2.25487916]
[1725543015032,0.00081,56860.0,56859.0,2.26887916]
[1725543015483,0.00081,56860.0,56859.0,2.62062616]
[1725543015912,0.00081,56860.0,56859.0,2.63462616]
[1725543016579,0.00081,56860.0,56859.0,2.0923682]
[1725543016804,0.00081,56860.0,56859.0,2.1063682]
[1725543017503,0.00081,56860.0,56859.0,2.26787916]
[1725543018149,0.00081,56860.0,56859.0,2.25387916]
[1725543018608,0.00081,56860.0,56859.0,1.851761]
[1725543018854,0.00081,56860.0,56859.0,2.0923682]
[1725543019380,0.00331,56860.0,56859.0,0.014]
[1725543019610,0.00331,56860.0,56859.0,0.028]
[1725543019611,0.530921,56860.0,56859.0,0.028]
[1725543019870,0.89054715,56860.0,56859.0,0.014]
[1725543021047,0.89054715,56860.0,56859.0,0.028]
[1725543021576,1.13115435,56860.0,56859.0,0.028]
[1725543021814,1.13115435,56860.0,56859.0,0.014]
[1725543022075,0.00969515,56860.0,56859.0,0.189873]
[1725543022532,0.00969515,56860.0,56859.0,0.893367]
[1725543022533,0.00081,56860.0,56859.0,0.893367]
[1725543022797,0.01069514,56860.0,56859.0,0.893367]
[1725543023056,0.00281,56860.0,56859.0,0.893367]
[1725543023289,0.00281,56860.0,56859.0,1.2605742]
[1725543023517,0.00281,56860.0,56859.0,1.5983212]
[1725543023761,0.00281,56860.0,56859.0,1.6283212]
[1725543023990,0.2414172,56860.0,56854.0,0.351773]
[1725543024225,0.2406072,56857.0,56853.0,0.1266]
[1725543024449,0.00081,56860.0,56853.0,0.1266]
[1725543024450,0.00181,56860.0,56853.0,0.1266]
[1725543024694,0.00784848,56856.0,56855.0,0.175886]
[1725543024916,0.2424172,56860.0,56855.0,0.175886]
[1725543024917,0.00181,56860.0,56857.0,0.175878]
[1725543025168,0.00081,56860.0,56859.0,0.175873]
[1725543025382,0.00081,56860.0,56859.0,0.52762]
[1725543025611,0.00081,56860.0,56859.0,0.175873]
[1725543025837,0.00081,56860.0,56851.0,0.351791]
[1725543025838,0.175902,56850.0,56845.0,0.175915]
[1725543026076,0.175902,56850.0,56840.0,0.01]
[1725543026077,0.175902,56850.0,56843.0,0.1238]
[1725543026078,0.175911,56847.0,56843.0,0.1238]
[1725543026306,0.2406072,56850.0,56846.0,0.175912]
[1725543026542,0.2406072,56850.0,56843.0,0.1238]
[1725543026543,0.175899,56851.0,56847.0,0.175909]
[1725543026791,0.2406072,56853.0,56844.0,0.351839]
[1725543026792,0.175902,56850.0,56846.0,0.175913]